[Event "Late-Titled-Tuesday-Blitz-September-19-2023"]
[Site "Chess.com"]
[Date "2023.09.19"]
[Round "2"]
[White "kreonx"]
[Black "Verony64"]
[Result "1-0"]
[WhiteElo "2479"]
[BlackElo "2243"]
[TimeControl "180+1"]
[EndTime "14:17:18 PDT"]
[Termination "kreonx won on time"]

1. e4 {[%clk 0:02:56.5]} 1... e5 {[%clk 0:02:49.2]} 2. Nf3 {[%clk 0:02:50.7]}
2... d6 {[%clk 0:02:49.1]} 3. d4 {[%clk 0:02:50.6]} 3... Nd7 {[%clk 0:02:48.2]}
4. Bc4 {[%clk 0:02:45.3]} 4... c6 {[%clk 0:02:46.6]} 5. a4 {[%clk 0:02:44.2]}
5... Be7 {[%clk 0:02:45.6]} 6. Nc3 {[%clk 0:02:44.4]} 6... Ngf6 {[%clk
0:02:45.6]} 7. O-O {[%clk 0:02:44.6]} 7... O-O {[%clk 0:02:45.6]} 8. a5 {[%clk
0:02:40.8]} 8... Rb8 {[%clk 0:02:41.9]} 9. h3 {[%clk 0:02:39.4]} 9... b5 {[%clk
0:02:39.2]} 10. axb6 {[%clk 0:02:39.9]} 10... axb6 {[%clk 0:02:39.4]} 11. Bb3
{[%clk 0:02:34.9]} 11... b5 {[%clk 0:02:39]} 12. d5 {[%clk 0:02:33.4]} 12... c5
{[%clk 0:02:38.1]} 13. Re1 {[%clk 0:02:30.7]} 13... c4 {[%clk 0:02:32.5]} 14.
Ba2 {[%clk 0:02:30.3]} 14... Nc5 {[%clk 0:02:31.3]} 15. Bg5 {[%clk 0:02:21.5]}
15... b4 {[%clk 0:02:27.7]} 16. Bxf6 {[%clk 0:02:15.5]} 16... Bxf6 {[%clk
0:02:24.9]} 17. Ne2 {[%clk 0:02:15.6]} 17... b3 {[%clk 0:01:49.6]} 18. cxb3
{[%clk 0:02:14.9]} 18... Nxe4 {[%clk 0:01:32.9]} 19. bxc4 {[%clk 0:02:05.1]}
19... Rxb2 {[%clk 0:01:29]} 20. Bb1 {[%clk 0:02:04.9]} 20... Bf5 {[%clk
0:01:20.4]} 21. Bxe4 {[%clk 0:01:54.5]} 21... Bxe4 {[%clk 0:01:19.3]} 22. Ng3
{[%clk 0:01:53.2]} 22... Bxf3 {[%clk 0:01:11.8]} 23. Qxf3 {[%clk 0:01:52.5]}
23... g6 {[%clk 0:01:09.2]} 24. Reb1 {[%clk 0:01:43.3]} 24... Rxb1+ {[%clk
0:01:01]} 25. Rxb1 {[%clk 0:01:44.2]} 25... Bg7 {[%clk 0:01:01.2]} 26. Ne4
{[%clk 0:01:40.5]} 26... h6 {[%clk 0:00:55.2]} 27. c5 {[%clk 0:01:38.7]} 27...
f5 {[%clk 0:00:54.2]} 28. Nxd6 {[%clk 0:01:38.4]} 28... e4 {[%clk 0:00:51.7]}
29. Qb3 {[%clk 0:01:37.4]} 29... Bd4 {[%clk 0:00:49.1]} 30. Nb7 {[%clk
0:01:35.4]} 30... Qh4 {[%clk 0:00:47.1]} 31. d6+ {[%clk 0:01:33.2]} 31... Kg7
{[%clk 0:00:47.5]} 32. d7 {[%clk 0:01:18]} 32... Qxf2+ {[%clk 0:00:41.1]} 33.
Kh1 {[%clk 0:01:17.6]} 33... Bf6 {[%clk 0:00:22.1]} 34. c6 {[%clk 0:01:13]}
34... e3 {[%clk 0:00:22.5]} 35. Qb6 {[%clk 0:01:06.4]} 35... Qg3 {[%clk
0:00:20.6]} 36. d8=Q {[%clk 0:00:44.6]} 36... Bxd8 {[%clk 0:00:15.4]} 37. Nxd8
{[%clk 0:00:44.2]} 37... e2 {[%clk 0:00:12.5]} 38. Ne6+ {[%clk 0:00:17.7]} 38...
Kf6 {[%clk 0:00:10]} 39. Nxf8 {[%clk 0:00:18.6]} 39... e1=Q+ {[%clk 0:00:09.4]}
40. Rxe1 {[%clk 0:00:19.1]} 40... Qxe1+ {[%clk 0:00:09.4]} 41. Qg1 {[%clk
0:00:19.7]} 41... Qe7 {[%clk 0:00:03.9]} 42. Nd7+ {[%clk 0:00:20]} 42... Kf7
{[%clk 0:00:01.8]} 43. Qc1 {[%clk 0:00:19.2]} 43... Qd6 {[%clk 0:00:01.6]} 44.
c7 {[%clk 0:00:19]} 1-0

[Event "Late-Titled-Tuesday-Blitz-September-19-2023"]
[Site "Chess.com"]
[Date "2023.09.19"]
[Round "2"]
[White "aranibos"]
[Black "MKlose11"]
[Result "0-1"]
[WhiteElo "2294"]
[BlackElo "2586"]
[TimeControl "180+1"]
[EndTime "14:17:29 PDT"]
[Termination "MKlose11 won by resignation"]

1. d4 {[%clk 0:03:00.9]} 1... Nf6 {[%clk 0:02:59.9]} 2. c3 {[%clk 0:03:00.4]}
2... c5 {[%clk 0:02:59.9]} 3. Bg5 {[%clk 0:03:00]} 3... cxd4 {[%clk 0:02:58.9]}
4. Bxf6 {[%clk 0:02:53.6]} 4... gxf6 {[%clk 0:02:58.4]} 5. cxd4 {[%clk
0:02:51.3]} 5... d5 {[%clk 0:02:57]} 6. Nc3 {[%clk 0:02:50.5]} 6... Nc6 {[%clk
0:02:56.4]} 7. e3 {[%clk 0:02:50.8]} 7... Qb6 {[%clk 0:02:52]} 8. Qd2 {[%clk
0:02:46.6]} 8... e6 {[%clk 0:02:52]} 9. Nf3 {[%clk 0:02:39.6]} 9... Be7 {[%clk
0:02:48.4]} 10. Bd3 {[%clk 0:02:38.2]} 10... Bd7 {[%clk 0:02:48.7]} 11. O-O
{[%clk 0:02:37.8]} 11... h5 {[%clk 0:02:48.8]} 12. Kh1 {[%clk 0:02:37]} 12... h4
{[%clk 0:02:46.8]} 13. h3 {[%clk 0:02:33.4]} 13... f5 {[%clk 0:02:44]} 14. Rac1
{[%clk 0:02:33]} 14... Qa5 {[%clk 0:02:36.3]} 15. a3 {[%clk 0:02:30]} 15... a6
{[%clk 0:02:30.2]} 16. b4 {[%clk 0:02:17.4]} 16... Qxa3 {[%clk 0:02:23.8]} 17.
Ra1 {[%clk 0:02:17.5]} 17... Qxb4 {[%clk 0:02:21.3]} 18. Rfb1 {[%clk 0:02:18.1]}
18... Qd6 {[%clk 0:02:17.5]} 19. Na4 {[%clk 0:02:16.6]} 19... Nb4 {[%clk
0:02:05.8]} 20. Nc5 {[%clk 0:02:09]} 20... Nxd3 {[%clk 0:02:04.2]} 21. Qxd3
{[%clk 0:02:09.1]} 21... b5 {[%clk 0:01:46.6]} 22. Ne5 {[%clk 0:01:58.7]} 22...
Bc8 {[%clk 0:01:33.8]} 23. Rxb5 {[%clk 0:01:53.4]} 23... O-O {[%clk 0:01:31.4]}
24. Rb2 {[%clk 0:01:43.8]} 24... a5 {[%clk 0:01:19.8]} 25. f4 {[%clk 0:01:43.7]}
25... Ba6 {[%clk 0:01:15.4]} 26. Qd1 {[%clk 0:01:44.2]} 26... Bc4 {[%clk
0:00:51.1]} 27. Ncd7 {[%clk 0:01:27]} 27... a4 {[%clk 0:00:16.7]} 28. Rxa4
{[%clk 0:01:09.7]} 28... Rxa4 {[%clk 0:00:16.4]} 29. Qxa4 {[%clk 0:01:09.6]}
29... Rd8 {[%clk 0:00:15.4]} 30. Nxc4 {[%clk 0:00:56.4]} 30... dxc4 {[%clk
0:00:13.4]} 31. Ne5 {[%clk 0:00:55.3]} 31... c3 {[%clk 0:00:13.3]} 32. Rc2
{[%clk 0:00:55.7]} 32... Rc8 {[%clk 0:00:13.4]} 33. Qa1 {[%clk 0:00:47.9]} 33...
Qb4 {[%clk 0:00:11.3]} 34. Qd1 {[%clk 0:00:48.5]} 34... Bf6 {[%clk 0:00:10.8]}
35. Nf3 {[%clk 0:00:42.9]} 35... Qb3 {[%clk 0:00:09.7]} 36. Ne1 {[%clk
0:00:35.2]} 36... Ra8 {[%clk 0:00:09.2]} 37. Kh2 {[%clk 0:00:30.5]} 37... Ra2
{[%clk 0:00:08.5]} 38. Qe2 {[%clk 0:00:30.1]} 38... Rb2 {[%clk 0:00:08.1]} 39.
g3 {[%clk 0:00:24]} 39... hxg3+ {[%clk 0:00:07.4]} 40. Kxg3 {[%clk 0:00:24.6]}
40... Be7 {[%clk 0:00:08]} 41. Kf3 {[%clk 0:00:24.8]} 41... Ba3 {[%clk
0:00:07.9]} 42. Qg2+ {[%clk 0:00:20.1]} 42... Kf8 {[%clk 0:00:07.7]} 43. Qg5
{[%clk 0:00:20.8]} 43... Be7 {[%clk 0:00:07.5]} 44. Qg2 {[%clk 0:00:17.7]} 44...
Bh4 {[%clk 0:00:06.8]} 45. Nd3 {[%clk 0:00:17.4]} 45... Rxc2 {[%clk 0:00:06.1]}
46. Qf1 {[%clk 0:00:10.4]} 46... Qd5+ {[%clk 0:00:06.1]} 0-1

[Event "Late-Titled-Tuesday-Blitz-September-19-2023"]
[Site "Chess.com"]
[Date "2023.09.19"]
[Round "2"]
[White "JesseFebruary"]
[Black "gunslinger222"]
[Result "1-0"]
[WhiteElo "2022"]
[BlackElo "2399"]
[TimeControl "180+1"]
[EndTime "14:17:29 PDT"]
[Termination "JesseFebruary won on time"]

1. e4 {[%clk 0:03:00.9]} 1... e6 {[%clk 0:02:59.3]} 2. d4 {[%clk 0:02:57]} 2...
d5 {[%clk 0:02:59.6]} 3. Nd2 {[%clk 0:02:57.2]} 3... c5 {[%clk 0:02:58.8]} 4.
exd5 {[%clk 0:02:56.1]} 4... exd5 {[%clk 0:02:59.1]} 5. dxc5 {[%clk 0:02:55.8]}
5... Bxc5 {[%clk 0:02:55.5]} 6. Bb5+ {[%clk 0:02:55.5]} 6... Nc6 {[%clk
0:02:54.6]} 7. Qe2+ {[%clk 0:02:52.6]} 7... Be7 {[%clk 0:02:45.8]} 8. Ngf3
{[%clk 0:02:51.9]} 8... Nf6 {[%clk 0:02:45.7]} 9. O-O {[%clk 0:02:51.5]} 9...
O-O {[%clk 0:02:45.8]} 10. Nb3 {[%clk 0:02:43.9]} 10... a6 {[%clk 0:02:37.7]}
11. Bd3 {[%clk 0:02:43.4]} 11... Nb4 {[%clk 0:02:35]} 12. Bf4 {[%clk 0:02:38.8]}
12... Nxd3 {[%clk 0:02:28.2]} 13. Qxd3 {[%clk 0:02:39.7]} 13... Bg4 {[%clk
0:02:11]} 14. Rfe1 {[%clk 0:02:32.5]} 14... Bd6 {[%clk 0:02:02]} 15. Bxd6 {[%clk
0:02:31.2]} 15... Qxd6 {[%clk 0:02:02.9]} 16. h3 {[%clk 0:02:27.5]} 16... Bh5
{[%clk 0:02:00.7]} 17. Rad1 {[%clk 0:02:25.5]} 17... Rac8 {[%clk 0:01:52.2]} 18.
c3 {[%clk 0:02:24.2]} 18... Qf4 {[%clk 0:01:40.6]} 19. Nbd4 {[%clk 0:02:20]}
19... Ne4 {[%clk 0:01:36.1]} 20. Qe3 {[%clk 0:01:47.2]} 20... Qf6 {[%clk
0:01:35.4]} 21. Rc1 {[%clk 0:01:19.7]} 21... b5 {[%clk 0:01:29.9]} 22. b3 {[%clk
0:01:15]} 22... Bg6 {[%clk 0:01:14.8]} 23. Nd2 {[%clk 0:00:48.3]} 23... h6
{[%clk 0:00:52.9]} 24. Nxe4 {[%clk 0:00:47.8]} 24... dxe4 {[%clk 0:00:42.4]} 25.
c4 {[%clk 0:00:37.7]} 25... bxc4 {[%clk 0:00:42.1]} 26. Rxc4 {[%clk 0:00:38.2]}
26... Rxc4 {[%clk 0:00:40.6]} 27. bxc4 {[%clk 0:00:39.1]} 27... Rc8 {[%clk
0:00:39.8]} 28. Rc1 {[%clk 0:00:38.9]} 28... Qd6 {[%clk 0:00:32.3]} 29. Nb3
{[%clk 0:00:34.4]} 29... f5 {[%clk 0:00:26.9]} 30. c5 {[%clk 0:00:34.3]} 30...
Qd5 {[%clk 0:00:25.2]} 31. Qd4 {[%clk 0:00:21.6]} 31... Bf7 {[%clk 0:00:14.2]}
32. Rd1 {[%clk 0:00:17.6]} 32... Qxd4 {[%clk 0:00:12.6]} 33. Nxd4 {[%clk
0:00:14.6]} 33... Rxc5 {[%clk 0:00:12.1]} 34. a4 {[%clk 0:00:13.2]} 34... g5
{[%clk 0:00:09.6]} 35. Rb1 {[%clk 0:00:10.6]} 35... Kg7 {[%clk 0:00:08.5]} 36.
Rb7 {[%clk 0:00:10.3]} 36... Kf6 {[%clk 0:00:08.6]} 37. Ne2 {[%clk 0:00:08.7]}
37... a5 {[%clk 0:00:08.1]} 38. Rb6+ {[%clk 0:00:08.7]} 38... Kg7 {[%clk
0:00:06.6]} 39. Nd4 {[%clk 0:00:08.9]} 39... Rc4 {[%clk 0:00:04]} 40. Nb5 {[%clk
0:00:08.3]} 40... Rxa4 {[%clk 0:00:02.5]} 41. Nd6 {[%clk 0:00:08.6]} 1-0

[Event "Late-Titled-Tuesday-Blitz-September-19-2023"]
[Site "Chess.com"]
[Date "2023.09.19"]
[Round "2"]
[White "NowInChess"]
[Black "wild3000"]
[Result "1/2-1/2"]
[WhiteElo "2246"]
[BlackElo "2458"]
[TimeControl "180+1"]
[EndTime "14:17:30 PDT"]
[Termination "Game drawn - insufficient material"]

1. e4 {[%clk 0:03:00.9]} 1... a6 {[%clk 0:02:52.6]} 2. d4 {[%clk 0:02:58.4]}
2... e6 {[%clk 0:02:52.2]} 3. f4 {[%clk 0:02:51.8]} 3... b5 {[%clk 0:02:51.6]}
4. Nf3 {[%clk 0:02:50.6]} 4... Bb7 {[%clk 0:02:51.6]} 5. Bd3 {[%clk 0:02:50.2]}
5... c5 {[%clk 0:02:51.4]} 6. c3 {[%clk 0:02:49]} 6... Nf6 {[%clk 0:02:51.4]} 7.
Qe2 {[%clk 0:02:48.2]} 7... d5 {[%clk 0:02:47.5]} 8. e5 {[%clk 0:02:41.3]} 8...
Ne4 {[%clk 0:02:47.6]} 9. Nbd2 {[%clk 0:02:41.9]} 9... cxd4 {[%clk 0:02:44.1]}
10. Nxe4 {[%clk 0:02:24.1]} 10... dxe4 {[%clk 0:02:43.6]} 11. Bxe4 {[%clk
0:02:24.1]} 11... Bxe4 {[%clk 0:02:41.2]} 12. Qxe4 {[%clk 0:02:24.5]} 12... Qd5
{[%clk 0:02:39.5]} 13. Qxd5 {[%clk 0:02:22.4]} 13... exd5 {[%clk 0:02:40.4]} 14.
Nxd4 {[%clk 0:02:16.3]} 14... Bc5 {[%clk 0:02:39.7]} 15. Nb3 {[%clk 0:02:00.1]}
15... Bb6 {[%clk 0:02:38.6]} 16. Ke2 {[%clk 0:02:00.1]} 16... Nc6 {[%clk
0:02:35]} 17. Be3 {[%clk 0:01:54.5]} 17... Bc7 {[%clk 0:02:24.5]} 18. Rad1
{[%clk 0:01:49.2]} 18... Rd8 {[%clk 0:02:23.1]} 19. Bc5 {[%clk 0:01:32.1]} 19...
f6 {[%clk 0:02:13.5]} 20. exf6 {[%clk 0:01:18.5]} 20... gxf6 {[%clk 0:02:14.4]}
21. g3 {[%clk 0:01:17.2]} 21... Kf7 {[%clk 0:02:13.8]} 22. Rd2 {[%clk 0:01:11]}
22... Rhe8+ {[%clk 0:02:12.1]} 23. Kf3 {[%clk 0:01:11.5]} 23... a5 {[%clk
0:01:51.2]} 24. Rhd1 {[%clk 0:01:09.5]} 24... a4 {[%clk 0:01:51.1]} 25. Nd4
{[%clk 0:00:59.9]} 25... Nxd4+ {[%clk 0:01:47.1]} 26. Rxd4 {[%clk 0:00:59]}
26... Ke6 {[%clk 0:01:35.2]} 27. Re1+ {[%clk 0:00:42.3]} 27... Kf7 {[%clk
0:01:35.2]} 28. Rxe8 {[%clk 0:00:41.9]} 28... Kxe8 {[%clk 0:01:36.1]} 29. f5
{[%clk 0:00:40]} 29... Be5 {[%clk 0:01:27.6]} 30. Rh4 {[%clk 0:00:33.1]} 30...
Rd7 {[%clk 0:01:27]} 31. Bd4 {[%clk 0:00:33]} 31... a3 {[%clk 0:01:11.2]} 32.
bxa3 {[%clk 0:00:23.2]} 32... Bxd4 {[%clk 0:01:08]} 33. Rxd4 {[%clk 0:00:22.4]}
33... Ke7 {[%clk 0:01:06.6]} 34. Rb4 {[%clk 0:00:20.8]} 34... Ra7 {[%clk
0:01:02.6]} 35. Rxb5 {[%clk 0:00:13.6]} 35... Rxa3 {[%clk 0:00:58.5]} 36. Rxd5
{[%clk 0:00:13.4]} 36... Rxc3+ {[%clk 0:00:58.2]} 37. Kf4 {[%clk 0:00:13.6]}
37... Rc4+ {[%clk 0:00:57.7]} 38. Kf3 {[%clk 0:00:13.8]} 38... Rc3+ {[%clk
0:00:52.6]} 39. Ke4 {[%clk 0:00:13.7]} 39... Rc2 {[%clk 0:00:51.6]} 40. h4
{[%clk 0:00:11.7]} 40... Rxa2 {[%clk 0:00:51.2]} 41. Rb5 {[%clk 0:00:11.9]}
41... Ra4+ {[%clk 0:00:48.1]} 42. Kf3 {[%clk 0:00:12]} 42... Kf7 {[%clk
0:00:45.4]} 43. Rb7+ {[%clk 0:00:10.9]} 43... Kg8 {[%clk 0:00:45.2]} 44. g4
{[%clk 0:00:10.2]} 44... Rc4 {[%clk 0:00:40.8]} 45. g5 {[%clk 0:00:09.9]} 45...
Rxh4 {[%clk 0:00:39.1]} 46. gxf6 {[%clk 0:00:07.1]} 46... h5 {[%clk 0:00:35.6]}
47. Kg3 {[%clk 0:00:05.7]} 47... Rg4+ {[%clk 0:00:33.6]} 48. Kh3 {[%clk
0:00:05.9]} 48... Kf8 {[%clk 0:00:33.2]} 49. Rg7 {[%clk 0:00:04.7]} 49... Rxg7
{[%clk 0:00:24.4]} 50. fxg7+ {[%clk 0:00:05.6]} 50... Kxg7 {[%clk 0:00:25]} 51.
Kh4 {[%clk 0:00:05.9]} 51... Kf6 {[%clk 0:00:25.3]} 52. Kxh5 {[%clk 0:00:06.3]}
52... Kxf5 {[%clk 0:00:25.7]} 1/2-1/2

[Event "Late-Titled-Tuesday-Blitz-September-19-2023"]
[Site "Chess.com"]
[Date "2023.09.19"]
[Round "2"]
[White "KChor05TTV"]
[Black "kuli4ik"]
[Result "0-1"]
[WhiteElo "2587"]
[BlackElo "2965"]
[TimeControl "180+1"]
[EndTime "14:17:31 PDT"]
[Termination "kuli4ik won by resignation"]

1. e4 {[%clk 0:03:00.9]} 1... e6 {[%clk 0:02:56.3]} 2. d4 {[%clk 0:02:59.7]}
2... d5 {[%clk 0:02:56.6]} 3. Nd2 {[%clk 0:03:00.1]} 3... Nc6 {[%clk 0:02:54.8]}
4. Ngf3 {[%clk 0:02:59.5]} 4... Nf6 {[%clk 0:02:52.7]} 5. exd5 {[%clk 0:02:51]}
5... exd5 {[%clk 0:02:52.3]} 6. Be2 {[%clk 0:02:45.7]} 6... Bd6 {[%clk
0:02:51.6]} 7. O-O {[%clk 0:02:44.9]} 7... O-O {[%clk 0:02:50.4]} 8. h3 {[%clk
0:02:43.9]} 8... Re8 {[%clk 0:02:49.8]} 9. c3 {[%clk 0:02:38.4]} 9... h6 {[%clk
0:02:43.9]} 10. Bd3 {[%clk 0:02:33.4]} 10... Ne4 {[%clk 0:02:43.1]} 11. Re1
{[%clk 0:02:26.4]} 11... Bf5 {[%clk 0:02:42.3]} 12. Qc2 {[%clk 0:02:21.6]} 12...
Qe7 {[%clk 0:02:16.3]} 13. b4 {[%clk 0:02:11.4]} 13... a6 {[%clk 0:02:09.1]} 14.
Qb3 {[%clk 0:01:36.4]} 14... Qd7 {[%clk 0:01:55.5]} 15. Qc2 {[%clk 0:01:22.2]}
15... Re7 {[%clk 0:01:43.3]} 16. Nxe4 {[%clk 0:00:54.4]} 16... dxe4 {[%clk
0:01:41.9]} 17. Bxe4 {[%clk 0:00:54.6]} 17... Rae8 {[%clk 0:01:37.4]} 18. Ne5
{[%clk 0:00:38.7]} 18... Nxe5 {[%clk 0:01:12.3]} 19. dxe5 {[%clk 0:00:21.9]}
19... Rxe5 {[%clk 0:01:11.8]} 20. f3 {[%clk 0:00:20.4]} 20... Bxe4 {[%clk
0:01:06.7]} 21. fxe4 {[%clk 0:00:18.1]} 21... Qc6 {[%clk 0:01:04.5]} 22. Bf4
{[%clk 0:00:18]} 22... Rxe4 {[%clk 0:01:01.8]} 23. Rxe4 {[%clk 0:00:17.1]} 23...
Rxe4 {[%clk 0:01:01.6]} 24. Bxd6 {[%clk 0:00:17]} 24... cxd6 {[%clk 0:01:01.8]}
25. Rf1 {[%clk 0:00:16.2]} 25... Qc4 {[%clk 0:00:54.3]} 26. Qd2 {[%clk
0:00:14.7]} 26... d5 {[%clk 0:00:50.5]} 27. Rf2 {[%clk 0:00:15.3]} 27... d4
{[%clk 0:00:48.3]} 28. cxd4 {[%clk 0:00:15.5]} 28... Rxd4 {[%clk 0:00:48.2]} 29.
Qe3 {[%clk 0:00:16]} 29... Qxb4 {[%clk 0:00:44.2]} 30. Qe8+ {[%clk 0:00:14.5]}
30... Qf8 {[%clk 0:00:43.8]} 31. Qe5 {[%clk 0:00:14.4]} 31... Rd1+ {[%clk
0:00:42.6]} 32. Rf1 {[%clk 0:00:13.8]} 32... Rxf1+ {[%clk 0:00:41.9]} 33. Kxf1
{[%clk 0:00:14.7]} 33... Qd8 {[%clk 0:00:41.1]} 34. Kg1 {[%clk 0:00:13]} 34...
b5 {[%clk 0:00:39.4]} 35. Qc5 {[%clk 0:00:12.1]} 35... g6 {[%clk 0:00:35.6]} 36.
Qa7 {[%clk 0:00:12.1]} 36... Qd6 {[%clk 0:00:33]} 37. Qa8+ {[%clk 0:00:12.2]}
37... Kg7 {[%clk 0:00:33]} 38. Qe4 {[%clk 0:00:13.1]} 38... b4 {[%clk 0:00:32]}
39. Qe3 {[%clk 0:00:12.6]} 39... a5 {[%clk 0:00:31.4]} 40. Kh1 {[%clk
0:00:12.8]} 40... a4 {[%clk 0:00:30.7]} 41. Qe4 {[%clk 0:00:13]} 41... Qc5
{[%clk 0:00:24.7]} 42. Qd3 {[%clk 0:00:12.5]} 42... Qb6 {[%clk 0:00:22.3]} 43.
Qb1 {[%clk 0:00:11]} 43... b3 {[%clk 0:00:21.8]} 44. Qb2+ {[%clk 0:00:11.4]}
44... Kg8 {[%clk 0:00:20.8]} 45. axb3 {[%clk 0:00:11.2]} 45... Qxb3 {[%clk
0:00:20.1]} 46. Qe5 {[%clk 0:00:12.1]} 46... a3 {[%clk 0:00:20.1]} 47. Qe8+
{[%clk 0:00:11.9]} 47... Kh7 {[%clk 0:00:20.3]} 48. Qe5 {[%clk 0:00:12.8]} 48...
a2 {[%clk 0:00:20]} 49. Kh2 {[%clk 0:00:13.1]} 49... Qa4 {[%clk 0:00:18.5]} 50.
Qf6 {[%clk 0:00:13]} 50... a1=Q {[%clk 0:00:16.6]} 51. Qxf7+ {[%clk 0:00:13.5]}
51... Qg7 {[%clk 0:00:16.9]} 52. Qf3 {[%clk 0:00:13.6]} 52... Qad4 {[%clk
0:00:17]} 0-1

[Event "Late-Titled-Tuesday-Blitz-September-19-2023"]
[Site "Chess.com"]
[Date "2023.09.19"]
[Round "2"]
[White "SergioMoralesG"]
[Black "Goryachkina"]
[Result "1-0"]
[WhiteElo "2429"]
[BlackElo "2675"]
[TimeControl "180+1"]
[EndTime "14:17:31 PDT"]
[Termination "SergioMoralesG won on time"]

1. d4 {[%clk 0:03:00.9]} 1... Nf6 {[%clk 0:02:59.4]} 2. c4 {[%clk 0:03:00.9]}
2... e6 {[%clk 0:02:59.6]} 3. Nf3 {[%clk 0:03:00.6]} 3... d5 {[%clk 0:02:59.4]}
4. Nc3 {[%clk 0:03:01]} 4... Nbd7 {[%clk 0:02:59.4]} 5. Bg5 {[%clk 0:02:58.2]}
5... h6 {[%clk 0:02:58.3]} 6. Bh4 {[%clk 0:02:56.4]} 6... Be7 {[%clk 0:02:56.8]}
7. e3 {[%clk 0:02:56.1]} 7... O-O {[%clk 0:02:56.9]} 8. Rc1 {[%clk 0:02:56.5]}
8... dxc4 {[%clk 0:02:55.7]} 9. Bxc4 {[%clk 0:02:56.3]} 9... a6 {[%clk
0:02:54.1]} 10. O-O {[%clk 0:02:54.5]} 10... c5 {[%clk 0:02:53.3]} 11. Qe2
{[%clk 0:02:37.9]} 11... cxd4 {[%clk 0:02:48.2]} 12. Nxd4 {[%clk 0:02:35.3]}
12... Ne5 {[%clk 0:02:41.8]} 13. Rfd1 {[%clk 0:02:27.5]} 13... Nxc4 {[%clk
0:02:15.3]} 14. Nc6 {[%clk 0:02:21.9]} 14... Qe8 {[%clk 0:01:55.8]} 15. Nxe7+
{[%clk 0:02:20.5]} 15... Qxe7 {[%clk 0:01:56.7]} 16. Qxc4 {[%clk 0:02:20.9]}
16... b5 {[%clk 0:01:51.2]} 17. Qd4 {[%clk 0:01:58.8]} 17... Bb7 {[%clk
0:01:47.5]} 18. Bxf6 {[%clk 0:01:50.6]} 18... Qxf6 {[%clk 0:01:40.2]} 19. Qxf6
{[%clk 0:01:49.6]} 19... gxf6 {[%clk 0:01:41.1]} 20. Rd7 {[%clk 0:01:49.6]}
20... Rab8 {[%clk 0:01:32.1]} 21. Ne2 {[%clk 0:01:48.7]} 21... Bd5 {[%clk
0:01:25.2]} 22. b3 {[%clk 0:01:34.9]} 22... Rfc8 {[%clk 0:01:11.3]} 23. Rdc7
{[%clk 0:01:24.9]} 23... Rxc7 {[%clk 0:01:11.2]} 24. Rxc7 {[%clk 0:01:25.8]}
24... a5 {[%clk 0:01:09.3]} 25. f3 {[%clk 0:01:14.4]} 25... e5 {[%clk
0:00:36.3]} 26. Nc3 {[%clk 0:01:01.6]} 26... Be6 {[%clk 0:00:34.4]} 27. Ra7
{[%clk 0:00:43.7]} 27... a4 {[%clk 0:00:31.7]} 28. b4 {[%clk 0:00:14.5]} 28...
Rc8 {[%clk 0:00:24.9]} 29. Nxb5 {[%clk 0:00:12.9]} 29... Rc1+ {[%clk 0:00:23.3]}
30. Kf2 {[%clk 0:00:12.5]} 30... Rc2+ {[%clk 0:00:22]} 31. Kg3 {[%clk
0:00:12.5]} 31... Rxa2 {[%clk 0:00:19.9]} 32. Nc3 {[%clk 0:00:12.5]} 32... Rc2
{[%clk 0:00:08.2]} 33. Nxa4 {[%clk 0:00:11.6]} 33... Ra2 {[%clk 0:00:07.7]} 34.
b5 {[%clk 0:00:11.9]} 34... Kg7 {[%clk 0:00:03.6]} 35. b6 {[%clk 0:00:11.9]}
35... Bd5 {[%clk 0:00:03.6]} 36. Nc5 {[%clk 0:00:10.8]} 36... Rb2 {[%clk
0:00:03.3]} 37. b7 {[%clk 0:00:09.2]} 37... Rb5 {[%clk 0:00:02.5]} 38. e4 {[%clk
0:00:08.5]} 38... Bc6 {[%clk 0:00:02.4]} 39. Nd3 {[%clk 0:00:05.8]} 1-0

[Event "Late-Titled-Tuesday-Blitz-September-19-2023"]
[Site "Chess.com"]
[Date "2023.09.19"]
[Round "2"]
[White "Misticpikachu"]
[Black "Abund"]
[Result "0-1"]
[WhiteElo "2532"]
[BlackElo "2769"]
[TimeControl "180+1"]
[EndTime "14:17:35 PDT"]
[Termination "Abund won by resignation"]

1. c4 {[%clk 0:03:00.9]} 1... Nf6 {[%clk 0:02:59.4]} 2. Nc3 {[%clk 0:03:00.2]}
2... c5 {[%clk 0:02:57.7]} 3. Nf3 {[%clk 0:03:00.3]} 3... d5 {[%clk 0:02:52.3]}
4. cxd5 {[%clk 0:03:00.1]} 4... Nxd5 {[%clk 0:02:52.7]} 5. g3 {[%clk 0:03:00.8]}
5... Nc6 {[%clk 0:02:52.2]} 6. Bg2 {[%clk 0:03:01.5]} 6... Nxc3 {[%clk
0:02:52.6]} 7. bxc3 {[%clk 0:02:56.4]} 7... e5 {[%clk 0:02:52.6]} 8. O-O {[%clk
0:02:53.4]} 8... Be7 {[%clk 0:02:52.7]} 9. d4 {[%clk 0:02:42]} 9... cxd4 {[%clk
0:02:45.1]} 10. cxd4 {[%clk 0:02:42.9]} 10... exd4 {[%clk 0:02:45.4]} 11. Bb2
{[%clk 0:02:42.8]} 11... Bf6 {[%clk 0:02:34.6]} 12. Qd2 {[%clk 0:02:43.1]} 12...
O-O {[%clk 0:02:31.2]} 13. Rfd1 {[%clk 0:02:43.1]} 13... Qe7 {[%clk 0:02:09.6]}
14. Nxd4 {[%clk 0:02:41.7]} 14... Nxd4 {[%clk 0:02:06.2]} 15. Bxd4 {[%clk
0:02:42.6]} 15... Bxd4 {[%clk 0:02:06.7]} 16. Qxd4 {[%clk 0:02:42.8]} 16... Qxe2
{[%clk 0:02:04.1]} 17. Re1 {[%clk 0:02:27.1]} 17... Qa6 {[%clk 0:01:59.9]} 18.
Qb4 {[%clk 0:02:15.9]} 18... Rb8 {[%clk 0:01:57.5]} 19. Re7 {[%clk 0:02:02.7]}
19... b6 {[%clk 0:01:31.3]} 20. Bd5 {[%clk 0:01:23]} 20... Bb7 {[%clk
0:01:08.2]} 21. Bxf7+ {[%clk 0:01:03.5]} 21... Kh8 {[%clk 0:00:59.4]} 22. Qg4
{[%clk 0:00:24]} 22... Qa3 {[%clk 0:00:30.3]} 23. Rae1 {[%clk 0:00:19.2]} 23...
Qb2 {[%clk 0:00:28.9]} 24. h4 {[%clk 0:00:05.2]} 24... h6 {[%clk 0:00:20.5]} 25.
Qf4 {[%clk 0:00:05]} 25... Bd5 {[%clk 0:00:16.1]} 26. Qf5 {[%clk 0:00:04.9]}
26... Bxf7 {[%clk 0:00:06.9]} 27. Rxf7 {[%clk 0:00:05.8]} 27... Rxf7 {[%clk
0:00:06.6]} 28. Qxf7 {[%clk 0:00:06.7]} 28... a5 {[%clk 0:00:02.7]} 29. Re7
{[%clk 0:00:07.2]} 29... Rc8 {[%clk 0:00:02.8]} 30. Re8+ {[%clk 0:00:07]} 30...
Rxe8 {[%clk 0:00:03.1]} 31. Qxe8+ {[%clk 0:00:07.9]} 31... Kh7 {[%clk
0:00:03.9]} 32. Qe4+ {[%clk 0:00:08.8]} 32... Kg8 {[%clk 0:00:04.7]} 33. a4
{[%clk 0:00:08]} 33... Qf6 {[%clk 0:00:04.1]} 34. Qd5+ {[%clk 0:00:07.1]} 34...
Kh8 {[%clk 0:00:04.1]} 35. Qa8+ {[%clk 0:00:06.7]} 35... Kh7 {[%clk 0:00:04.3]}
36. Qb8 {[%clk 0:00:03.1]} 36... Qa1+ {[%clk 0:00:03.7]} 37. Kg2 {[%clk
0:00:03]} 37... Qxa4 {[%clk 0:00:04.2]} 38. Qxb6 {[%clk 0:00:02.8]} 38... Qe4+
{[%clk 0:00:03]} 39. Kh2 {[%clk 0:00:03.3]} 39... a4 {[%clk 0:00:03.5]} 40. Qa7
{[%clk 0:00:03.9]} 40... Qc2 {[%clk 0:00:03.5]} 41. Kg2 {[%clk 0:00:01.1]} 41...
Qe4+ {[%clk 0:00:03.9]} 42. Kh2 {[%clk 0:00:01.2]} 42... Qb4 {[%clk 0:00:03.9]}
43. Qa5 {[%clk 0:00:02.1]} 43... Qxa5 {[%clk 0:00:04.1]} 0-1